[Event "*** Titled Tuesday Blitz"]
[Site "Chess.com"]
[Date "2021.04.20"]
[Round "4"]
[White "Indianlad"]
[Black "IriBu"]
[Result "1-0"]
[WhiteElo "2912"]
[BlackElo "2563"]
[TimeControl "180+1"]
[EndTime "10:35:59 PDT"]
[Termination "Indianlad won by resignation"]

1. d4 {[%clk 0:03:00.7]} 1... Nf6 {[%clk 0:02:59.6]} 2. Bf4 {[%clk 0:02:59.7]}
2... d6 {[%clk 0:02:57.8]} 3. Nf3 {[%clk 0:02:59.2]} 3... g6 {[%clk 0:02:57.3]}
4. h3 {[%clk 0:02:57.5]} 4... Bg7 {[%clk 0:02:57.7]} 5. e3 {[%clk 0:02:57.7]}
5... O-O {[%clk 0:02:57.4]} 6. Be2 {[%clk 0:02:58.3]} 6... b6 {[%clk 0:02:57.9]}
7. O-O {[%clk 0:02:58.2]} 7... Bb7 {[%clk 0:02:58.5]} 8. a4 {[%clk 0:02:58.7]}
8... a6 {[%clk 0:02:57.9]} 9. Bh2 {[%clk 0:02:58.1]} 9... Nbd7 {[%clk
0:02:57.4]} 10. c4 {[%clk 0:02:58.3]} 10... c5 {[%clk 0:02:46.3]} 11. Nc3 {[%clk
0:02:56.7]} 11... cxd4 {[%clk 0:02:44.2]} 12. Nxd4 {[%clk 0:02:54.4]} 12... Rc8
{[%clk 0:02:42.6]} 13. Rc1 {[%clk 0:02:54]} 13... Ne5 {[%clk 0:02:37.9]} 14. b3
{[%clk 0:02:53.8]} 14... Qc7 {[%clk 0:02:35.3]} 15. Nf3 {[%clk 0:02:47.4]} 15...
e6 {[%clk 0:02:25.9]} 16. Nxe5 {[%clk 0:02:45.3]} 16... dxe5 {[%clk 0:02:25.7]}
17. Bf3 {[%clk 0:02:45.8]} 17... Bxf3 {[%clk 0:02:18.7]} 18. Qxf3 {[%clk
0:02:45.5]} 18... Qc5 {[%clk 0:02:17]} 19. Rfd1 {[%clk 0:02:40.9]} 19... Rfd8
{[%clk 0:02:14.5]} 20. g4 {[%clk 0:02:40.8]} 20... h6 {[%clk 0:02:14.2]} 21. h4
{[%clk 0:02:39.7]} 21... g5 {[%clk 0:02:07]} 22. hxg5 {[%clk 0:02:39.3]} 22...
hxg5 {[%clk 0:02:07.2]} 23. Kg2 {[%clk 0:02:35.8]} 23... Qb4 {[%clk 0:01:33.9]}
24. Bxe5 {[%clk 0:02:32.7]} 24... Rxd1 {[%clk 0:01:29.7]} 25. Rxd1 {[%clk
0:02:31.3]} 25... Nxg4 {[%clk 0:01:22.2]} 26. Bxg7 {[%clk 0:02:03.3]} 26... Kxg7
{[%clk 0:01:23.1]} 27. Qxg4 {[%clk 0:02:03.2]} 27... Qxc3 {[%clk 0:01:16.4]} 28.
Qxg5+ {[%clk 0:02:03.4]} 28... Kf8 {[%clk 0:01:16.5]} 29. Rd8+ {[%clk
0:02:03.5]} 29... Rxd8 {[%clk 0:01:16.8]} 30. Qxd8+ {[%clk 0:02:04]} 30... Kg7
{[%clk 0:01:17.3]} 31. Qd4+ {[%clk 0:02:04.7]} 31... Qxd4 {[%clk 0:01:14.6]} 32.
exd4 {[%clk 0:02:04.9]} 32... Kf6 {[%clk 0:01:09.9]} 33. Kf3 {[%clk 0:02:04.7]}
33... Ke7 {[%clk 0:01:09.2]} 34. b4 {[%clk 0:02:04.2]} 34... Kd6 {[%clk
0:01:02.6]} 35. Ke4 {[%clk 0:02:00.3]} 35... f6 {[%clk 0:00:58.3]} 36. f4 {[%clk
0:02:00.4]} 36... a5 {[%clk 0:00:42]} 37. bxa5 {[%clk 0:01:59.9]} 37... bxa5
{[%clk 0:00:42.7]} 38. f5 {[%clk 0:01:59.2]} 38... e5 {[%clk 0:00:40]} 39. dxe5+
{[%clk 0:01:58.9]} 39... fxe5 {[%clk 0:00:39.4]} 40. f6 {[%clk 0:01:59.5]} 40...
Ke6 {[%clk 0:00:39.3]} 41. f7 {[%clk 0:02:00.2]} 41... Kxf7 {[%clk 0:00:39.4]}
42. Kxe5 {[%clk 0:02:00.8]} 42... Ke7 {[%clk 0:00:40.1]} 43. Kd5 {[%clk
0:02:01.3]} 43... Kd7 {[%clk 0:00:41]} 44. Kc5 {[%clk 0:02:01.5]} 44... Kc7
{[%clk 0:00:41.2]} 45. Kb5 {[%clk 0:02:01.8]} 45... Kd6 {[%clk 0:00:41.4]} 46.
Kb6 {[%clk 0:02:01.7]} 1-0

[Event "*** Titled Tuesday Blitz"]
[Site "Chess.com"]
[Date "2021.04.20"]
[Round "4"]
[White "Apocalyps999"]
[Black "GoValya"]
[Result "1-0"]
[WhiteElo "2450"]
[BlackElo "2265"]
[TimeControl "180+1"]
[EndTime "10:35:59 PDT"]
[Termination "Apocalyps999 won by resignation"]

1. e4 {[%clk 0:03:00.9]} 1... g6 {[%clk 0:02:57.1]} 2. d4 {[%clk 0:02:59.6]}
2... Bg7 {[%clk 0:02:56.2]} 3. Nc3 {[%clk 0:03:00.5]} 3... c6 {[%clk 0:02:35.8]}
4. Be3 {[%clk 0:02:45.3]} 4... d5 {[%clk 0:02:34.3]} 5. e5 {[%clk 0:02:44.9]}
5... f6 {[%clk 0:02:34.3]} 6. exf6 {[%clk 0:02:41.9]} 6... exf6 {[%clk 0:02:00]}
7. Qd2 {[%clk 0:02:31.5]} 7... Ne7 {[%clk 0:01:56.7]} 8. O-O-O {[%clk 0:02:27]}
8... O-O {[%clk 0:01:55.9]} 9. Bd3 {[%clk 0:02:23.5]} 9... Bf5 {[%clk
0:01:53.7]} 10. h4 {[%clk 0:02:22.4]} 10... b5 {[%clk 0:01:42.2]} 11. h5 {[%clk
0:02:19.3]} 11... Bxd3 {[%clk 0:01:19.1]} 12. Qxd3 {[%clk 0:02:20.2]} 12... Nd7
{[%clk 0:01:19.1]} 13. hxg6 {[%clk 0:02:17.1]} 13... hxg6 {[%clk 0:01:18.2]} 14.
Bh6 {[%clk 0:02:16.5]} 14... Bxh6+ {[%clk 0:01:12.6]} 15. Rxh6 {[%clk 0:02:15]}
15... Kg7 {[%clk 0:01:13]} 16. Qh3 {[%clk 0:02:11.2]} 16... Rf7 {[%clk 0:00:32]}
17. Re1 {[%clk 0:01:52.6]} 17... Ng8 {[%clk 0:00:24.6]} 18. Rh8 {[%clk
0:01:42.6]} 18... Kf8 {[%clk 0:00:20.8]} 19. Nf3 {[%clk 0:01:31.6]} 19... f5
{[%clk 0:00:19.8]} 20. Qh6+ {[%clk 0:01:25]} 20... Rg7 {[%clk 0:00:18.3]} 21.
Ng5 {[%clk 0:01:24.6]} 21... Nf6 {[%clk 0:00:16.3]} 22. Ne6+ {[%clk 0:01:21.1]}
1-0

[Event "*** Titled Tuesday Blitz"]
[Site "Chess.com"]
[Date "2021.04.20"]
[Round "4"]
[White "AldokhinIvan"]
[Black "Guzman70"]
[Result "1-0"]
[WhiteElo "2520"]
[BlackElo "2317"]
[TimeControl "180+1"]
[EndTime "10:36:08 PDT"]
[Termination "AldokhinIvan won by resignation"]

1. e4 {[%clk 0:02:57.5]} 1... g6 {[%clk 0:02:59.7]} 2. Nf3 {[%clk 0:02:58]} 2...
Bg7 {[%clk 0:03:00.3]} 3. Nc3 {[%clk 0:02:58.9]} 3... d6 {[%clk 0:02:58.4]} 4.
d4 {[%clk 0:02:59.8]} 4... a6 {[%clk 0:02:58.3]} 5. Bg5 {[%clk 0:02:59.9]} 5...
b5 {[%clk 0:02:56.9]} 6. Bd3 {[%clk 0:03:00.3]} 6... Bb7 {[%clk 0:02:57]} 7. O-O
{[%clk 0:03:00.2]} 7... Nd7 {[%clk 0:02:56.3]} 8. Re1 {[%clk 0:02:51.1]} 8... c5
{[%clk 0:02:55.4]} 9. e5 {[%clk 0:02:43]} 9... cxd4 {[%clk 0:02:37.7]} 10. exd6
{[%clk 0:01:51.9]} 10... dxc3 {[%clk 0:02:17.3]} 11. dxe7 {[%clk 0:01:48.5]}
11... Qc7 {[%clk 0:02:08.3]} 12. b4 {[%clk 0:01:39.8]} 12... f6 {[%clk 0:01:53]}
13. Nd4 {[%clk 0:01:29]} 13... Nxe7 {[%clk 0:01:19.3]} 14. Ne6 {[%clk
0:01:00.3]} 14... Qc6 {[%clk 0:01:19.3]} 15. Nxg7+ {[%clk 0:00:43.6]} 15... Kf7
{[%clk 0:01:19.3]} 16. Be4 {[%clk 0:00:41]} 16... Qc7 {[%clk 0:00:58.3]} 17.
Bxb7 {[%clk 0:00:37.4]} 17... Kxg7 {[%clk 0:00:52.3]} 18. Rxe7+ {[%clk
0:00:36.2]} 18... Kf8 {[%clk 0:00:51.4]} 19. Rxd7 {[%clk 0:00:29.8]} 1-0

[Event "*** Titled Tuesday Blitz"]
[Site "Chess.com"]
[Date "2021.04.20"]
[Round "4"]
[White "I_Enchev"]
[Black "MrChampion_Coach"]
[Result "1-0"]
[WhiteElo "2616"]
[BlackElo "2413"]
[TimeControl "180+1"]
[EndTime "10:36:13 PDT"]
[Termination "I_Enchev won by resignation"]

1. e4 {[%clk 0:03:00.9]} 1... c5 {[%clk 0:02:58]} 2. Nf3 {[%clk 0:03:00.9]} 2...
d6 {[%clk 0:02:57.8]} 3. d4 {[%clk 0:03:00.3]} 3... cxd4 {[%clk 0:02:58.1]} 4.
Nxd4 {[%clk 0:03:01.2]} 4... Nf6 {[%clk 0:02:58.3]} 5. Nc3 {[%clk 0:03:01.7]}
5... a6 {[%clk 0:02:58.6]} 6. a3 {[%clk 0:03:01.7]} 6... e5 {[%clk 0:02:51.8]}
7. Nf3 {[%clk 0:03:01]} 7... Qc7 {[%clk 0:02:48.7]} 8. Bg5 {[%clk 0:02:59.8]}
8... Nbd7 {[%clk 0:02:47.8]} 9. Nd2 {[%clk 0:02:59.5]} 9... h6 {[%clk
0:02:40.6]} 10. Bh4 {[%clk 0:02:58.9]} 10... b5 {[%clk 0:02:38.2]} 11. Bd3
{[%clk 0:02:52.5]} 11... Be7 {[%clk 0:02:33.2]} 12. Nf1 {[%clk 0:02:45.3]} 12...
Bb7 {[%clk 0:02:26.4]} 13. Ne3 {[%clk 0:02:45.1]} 13... O-O {[%clk 0:02:16.7]}
14. Nf5 {[%clk 0:02:29.1]} 14... Bd8 {[%clk 0:02:13.4]} 15. Qf3 {[%clk
0:02:25.1]} 15... d5 {[%clk 0:01:54]} 16. Qg3 {[%clk 0:02:16.8]} 16... Nh5
{[%clk 0:01:39.2]} 17. Qg4 {[%clk 0:02:15.4]} 17... Bxh4 {[%clk 0:01:32.8]} 18.
Qxh5 {[%clk 0:02:13]} 18... Bf6 {[%clk 0:00:44.5]} 19. exd5 {[%clk 0:01:59.8]}
19... e4 {[%clk 0:00:40.5]} 20. Nxe4 {[%clk 0:01:53.8]} 20... Bxb2 {[%clk
0:00:37.4]} 21. O-O {[%clk 0:01:51.6]} 21... Nf6 {[%clk 0:00:30.4]} 22. Nxf6+
{[%clk 0:01:45]} 22... Bxf6 {[%clk 0:00:31.3]} 23. Nxh6+ {[%clk 0:01:42]} 23...
gxh6 {[%clk 0:00:24]} 24. Qf5 {[%clk 0:01:41.2]} 24... Rfd8 {[%clk 0:00:18.4]}
25. Qxf6 {[%clk 0:01:39.2]} 25... Rxd5 {[%clk 0:00:09.5]} 26. Qxh6 {[%clk
0:01:38.1]} 26... Qd6 {[%clk 0:00:06.4]} 27. Bh7+ {[%clk 0:01:33.3]} 1-0

[Event "*** Titled Tuesday Blitz"]
[Site "Chess.com"]
[Date "2021.04.20"]
[Round "4"]
[White "Hangar-18"]
[Black "mac0504"]
[Result "0-1"]
[WhiteElo "2348"]
[BlackElo "2583"]
[TimeControl "180+1"]
[EndTime "10:36:16 PDT"]
[Termination "mac0504 won by checkmate"]

1. c4 {[%clk 0:03:00.9]} 1... Nf6 {[%clk 0:02:57.9]} 2. Nc3 {[%clk 0:03:00.1]}
2... g6 {[%clk 0:02:58.5]} 3. e4 {[%clk 0:02:58.4]} 3... d6 {[%clk 0:02:59]} 4.
d4 {[%clk 0:02:58.8]} 4... Bg7 {[%clk 0:02:59.6]} 5. Nf3 {[%clk 0:02:59.1]} 5...
O-O {[%clk 0:03:00.2]} 6. Be2 {[%clk 0:02:59.5]} 6... Nbd7 {[%clk 0:03:00.8]} 7.
Bg5 {[%clk 0:02:41.2]} 7... c5 {[%clk 0:02:56.8]} 8. d5 {[%clk 0:02:40.5]} 8...
h6 {[%clk 0:02:52.7]} 9. Bd2 {[%clk 0:02:27.8]} 9... a6 {[%clk 0:02:51.4]} 10.
O-O {[%clk 0:02:25]} 10... Ne8 {[%clk 0:02:40.7]} 11. Qc1 {[%clk 0:02:22.1]}
11... Kh7 {[%clk 0:02:40.3]} 12. Be3 {[%clk 0:02:16.4]} 12... Nc7 {[%clk
0:02:36.8]} 13. a4 {[%clk 0:02:15.4]} 13... b6 {[%clk 0:02:35.6]} 14. Ne1 {[%clk
0:02:01.4]} 14... e5 {[%clk 0:02:27.7]} 15. Nd3 {[%clk 0:01:54]} 15... f5 {[%clk
0:02:12.2]} 16. exf5 {[%clk 0:01:52]} 16... gxf5 {[%clk 0:02:07.2]} 17. f4
{[%clk 0:01:52]} 17... exf4 {[%clk 0:02:01.9]} 18. Nxf4 {[%clk 0:01:49.8]} 18...
Ne5 {[%clk 0:02:02.3]} 19. h3 {[%clk 0:01:41]} 19... Bd7 {[%clk 0:01:57.8]} 20.
Qc2 {[%clk 0:01:38.5]} 20... Qh4 {[%clk 0:01:50.8]} 21. Rae1 {[%clk 0:01:27.7]}
21... Rae8 {[%clk 0:01:50.7]} 22. Bc1 {[%clk 0:01:12.3]} 22... Ng6 {[%clk
0:01:29.5]} 23. Nxg6 {[%clk 0:00:56.3]} 23... Kxg6 {[%clk 0:01:30.4]} 24. Bd2
{[%clk 0:00:41.7]} 24... Bd4+ {[%clk 0:01:20.2]} 25. Kh1 {[%clk 0:00:40.9]}
25... Be5 {[%clk 0:01:20.9]} 26. Qd3 {[%clk 0:00:39.7]} 26... Kg7 {[%clk
0:01:09.7]} 27. Bf3 {[%clk 0:00:39.3]} 27... Qg3 {[%clk 0:01:07.2]} 28. Be3
{[%clk 0:00:29.3]} 28... Qh2# {[%clk 0:01:06.1]} 0-1

[Event "*** Titled Tuesday Blitz"]
[Site "Chess.com"]
[Date "2021.04.20"]
[Round "4"]
[White "BJthechessgod"]
[Black "Agnes66678"]
[Result "0-1"]
[WhiteElo "2292"]
[BlackElo "2457"]
[TimeControl "180+1"]
[EndTime "10:36:18 PDT"]
[Termination "Agnes66678 won by resignation"]

1. d4 {[%clk 0:03:00.9]} 1... Nf6 {[%clk 0:02:59.5]} 2. Bf4 {[%clk 0:03:00.9]}
2... g6 {[%clk 0:02:59.1]} 3. Nf3 {[%clk 0:02:59.8]} 3... Bg7 {[%clk 0:02:59.2]}
4. e3 {[%clk 0:02:58.3]} 4... O-O {[%clk 0:02:58.9]} 5. Be2 {[%clk 0:02:58.6]}
5... d6 {[%clk 0:02:59.1]} 6. h3 {[%clk 0:02:58.8]} 6... Nc6 {[%clk 0:02:59.3]}
7. Nbd2 {[%clk 0:02:58.4]} 7... Nd7 {[%clk 0:02:54.6]} 8. Bh2 {[%clk 0:02:56]}
8... e5 {[%clk 0:02:54]} 9. c3 {[%clk 0:02:55.2]} 9... Qe7 {[%clk 0:02:53]} 10.
d5 {[%clk 0:02:51.5]} 10... Nd8 {[%clk 0:02:50.9]} 11. e4 {[%clk 0:02:49.8]}
11... f5 {[%clk 0:02:47.7]} 12. Bd3 {[%clk 0:02:42.8]} 12... Nf6 {[%clk
0:02:40.4]} 13. Qc2 {[%clk 0:02:38.7]} 13... fxe4 {[%clk 0:02:12.3]} 14. Nxe4
{[%clk 0:02:39.6]} 14... Nxd5 {[%clk 0:02:10.6]} 15. Bc4 {[%clk 0:02:27.3]}
15... c6 {[%clk 0:02:06.7]} 16. O-O-O {[%clk 0:02:25.5]} 16... Be6 {[%clk
0:02:02.4]} 17. Nfg5 {[%clk 0:02:23.3]} 17... Bh6 {[%clk 0:02:00.2]} 18. h4
{[%clk 0:02:23.4]} 18... b5 {[%clk 0:01:52.9]} 19. Bb3 {[%clk 0:02:20.2]} 19...
a5 {[%clk 0:01:45.8]} 20. c4 {[%clk 0:02:13.8]} 20... Nb4 {[%clk 0:01:41]} 21.
Qb1 {[%clk 0:01:43.6]} 21... bxc4 {[%clk 0:01:35.8]} 22. Ba4 {[%clk 0:01:43.3]}
22... d5 {[%clk 0:01:27.8]} 23. Bxe5 {[%clk 0:01:39.8]} 23... dxe4 {[%clk
0:01:24.3]} 24. Bd6 {[%clk 0:01:39.6]} 24... Bxg5+ {[%clk 0:01:18]} 25. hxg5
{[%clk 0:01:39.7]} 25... Qxg5+ {[%clk 0:01:18.9]} 26. Rd2 {[%clk 0:01:40]} 26...
Rf7 {[%clk 0:01:18.7]} 27. Qxe4 {[%clk 0:01:39.2]} 27... Nxa2+ {[%clk
0:01:11.2]} 28. Kb1 {[%clk 0:01:35.2]} 28... c3 {[%clk 0:01:09.5]} 29. Rd3
{[%clk 0:01:26.4]} 29... Nb4 {[%clk 0:01:00.5]} 30. Rg3 {[%clk 0:00:59.5]} 30...
Qf5 {[%clk 0:00:52.5]} 31. Qxf5 {[%clk 0:00:44.4]} 31... Bxf5+ {[%clk 0:00:52]}
0-1

[Event "*** Titled Tuesday Blitz"]
[Site "Chess.com"]
[Date "2021.04.20"]
[Round "4"]
[White "ExtremeLearner"]
[Black "LenkaPtacnikova"]
[Result "1-0"]
[WhiteElo "2449"]
[BlackElo "2168"]
[TimeControl "180+1"]
[EndTime "10:36:19 PDT"]
[Termination "ExtremeLearner won by resignation"]

1. d4 {[%clk 0:03:00.9]} 1... Nf6 {[%clk 0:02:58.9]} 2. Nf3 {[%clk 0:03:01.2]}
2... e6 {[%clk 0:02:57.9]} 3. g3 {[%clk 0:03:01.4]} 3... c5 {[%clk 0:02:57.9]}
4. Bg2 {[%clk 0:02:55.3]} 4... Be7 {[%clk 0:02:57.2]} 5. O-O {[%clk 0:02:55.6]}
5... O-O {[%clk 0:02:57.7]} 6. c4 {[%clk 0:02:53.2]} 6... d5 {[%clk 0:02:55.8]}
7. Nc3 {[%clk 0:02:41.3]} 7... Nc6 {[%clk 0:02:53.8]} 8. cxd5 {[%clk 0:02:41]}
8... Nxd5 {[%clk 0:02:53]} 9. Nxd5 {[%clk 0:02:37.7]} 9... exd5 {[%clk
0:02:52.1]} 10. dxc5 {[%clk 0:02:28.3]} 10... Bxc5 {[%clk 0:02:51.6]} 11. a3
{[%clk 0:02:29.2]} 11... Bf5 {[%clk 0:02:40.4]} 12. b4 {[%clk 0:02:26.8]} 12...
Bb6 {[%clk 0:02:38.7]} 13. Bb2 {[%clk 0:02:25.7]} 13... Re8 {[%clk 0:02:34.1]}
14. e3 {[%clk 0:02:19.3]} 14... Be4 {[%clk 0:02:32]} 15. Rc1 {[%clk 0:02:11.5]}
15... a5 {[%clk 0:02:23.2]} 16. b5 {[%clk 0:02:02.8]} 16... Ne7 {[%clk 0:02:22]}
17. Nd4 {[%clk 0:01:42.8]} 17... a4 {[%clk 0:02:13.7]} 18. Qg4 {[%clk
0:01:26.8]} 18... Bg6 {[%clk 0:01:49.3]} 19. Rfd1 {[%clk 0:01:21.9]} 19... Rc8
{[%clk 0:01:45.6]} 20. h4 {[%clk 0:01:13.9]} 20... h5 {[%clk 0:01:43]} 21. Rxc8
{[%clk 0:01:00.7]} 21... hxg4 {[%clk 0:01:32.4]} 22. Rxd8 {[%clk 0:01:00]} 22...
Rxd8 {[%clk 0:01:32.1]} 23. Rc1 {[%clk 0:00:48.3]} 23... Kf8 {[%clk 0:01:30.2]}
24. Ne2 {[%clk 0:00:37.9]} 24... Bd3 {[%clk 0:01:28.3]} 25. Bd4 {[%clk
0:00:36.1]} 25... Ba5 {[%clk 0:01:17.6]} 26. Nf4 {[%clk 0:00:31.9]} 26... Bxb5
{[%clk 0:01:12.8]} 27. Rc5 {[%clk 0:00:30]} 27... Bc6 {[%clk 0:01:11.8]} 28.
Rxa5 {[%clk 0:00:29.6]} 1-0

[Event "*** Titled Tuesday Blitz"]
[Site "Chess.com"]
[Date "2021.04.20"]
[Round "4"]
[White "Savagelittlemole"]
[Black "Borsuk_Konstantin"]
[Result "0-1"]
[WhiteElo "2502"]
[BlackElo "2699"]
[TimeControl "180+1"]
[EndTime "10:36:21 PDT"]
[Termination "Borsuk_Konstantin won by resignation"]

1. e4 {[%clk 0:03:00.9]} 1... e6 {[%clk 0:02:59.2]} 2. d4 {[%clk 0:03:00.5]}
2... d5 {[%clk 0:02:59.8]} 3. Nd2 {[%clk 0:03:00.6]} 3... Nf6 {[%clk 0:02:59.8]}
4. e5 {[%clk 0:03:00.4]} 4... Nfd7 {[%clk 0:03:00.5]} 5. Bd3 {[%clk 0:03:00]}
5... c5 {[%clk 0:03:01.2]} 6. c3 {[%clk 0:03:00.3]} 6... Nc6 {[%clk 0:03:01.9]}
7. Ne2 {[%clk 0:02:59]} 7... b6 {[%clk 0:03:02.5]} 8. O-O {[%clk 0:02:57.9]}
8... cxd4 {[%clk 0:03:02.3]} 9. cxd4 {[%clk 0:02:57.2]} 9... Nb4 {[%clk
0:03:02.7]} 10. Bb1 {[%clk 0:02:56.9]} 10... Ba6 {[%clk 0:03:03.3]} 11. f4
{[%clk 0:02:48.8]} 11... g6 {[%clk 0:02:54.3]} 12. Nf3 {[%clk 0:02:47.7]} 12...
Qc7 {[%clk 0:02:49.4]} 13. a3 {[%clk 0:02:46.2]} 13... Nc6 {[%clk 0:02:48.6]}
14. g4 {[%clk 0:02:31.5]} 14... h5 {[%clk 0:02:42.5]} 15. f5 {[%clk 0:02:31.3]}
15... hxg4 {[%clk 0:02:36.5]} 16. fxe6 {[%clk 0:02:31.6]} 16... gxf3 {[%clk
0:02:36.4]} 17. exd7+ {[%clk 0:02:31.1]} 17... Qxd7 {[%clk 0:02:34.8]} 18. Rxf3
{[%clk 0:02:28]} 18... Bxe2 {[%clk 0:02:15.5]} 19. Qxe2 {[%clk 0:02:28.9]} 19...
Nxd4 {[%clk 0:02:15.2]} 20. Qg2 {[%clk 0:02:22.1]} 20... Nxf3+ {[%clk
0:02:09.5]} 21. Qxf3 {[%clk 0:02:23]} 21... Bc5+ {[%clk 0:02:05.7]} 22. Kg2
{[%clk 0:02:20.6]} 22... Rh4 {[%clk 0:01:58.7]} 23. Bf4 {[%clk 0:02:15.7]} 23...
Qg4+ {[%clk 0:01:51.5]} 24. Qxg4 {[%clk 0:02:12.1]} 24... Rxg4+ {[%clk
0:01:52.4]} 25. Bg3 {[%clk 0:02:12.7]} 25... Rc8 {[%clk 0:01:42.7]} 26. h4
{[%clk 0:02:05.2]} 26... Be7 {[%clk 0:01:40.2]} 27. Kf3 {[%clk 0:01:59]} 27...
Rd4 {[%clk 0:01:37.3]} 28. e6 {[%clk 0:01:43.8]} 28... Bxh4 {[%clk 0:01:25]} 29.
exf7+ {[%clk 0:01:43.3]} 29... Kxf7 {[%clk 0:01:24.7]} 30. Be5 {[%clk
0:01:43.5]} 30... Rd2 {[%clk 0:01:10.5]} 31. Ba2 {[%clk 0:01:38.9]} 31... Ke6
{[%clk 0:01:07.4]} 32. Bc3 {[%clk 0:01:36.4]} 32... Rf2+ {[%clk 0:01:06.1]} 33.
Kg4 {[%clk 0:01:35.5]} 33... g5 {[%clk 0:01:02.2]} 34. Re1+ {[%clk 0:01:34.2]}
34... Kd6 {[%clk 0:01:01.9]} 35. Rd1 {[%clk 0:01:28.7]} 35... Rxc3 {[%clk
0:00:46.4]} 36. Rxd5+ {[%clk 0:01:21.7]} 36... Kc7 {[%clk 0:00:44.2]} 37. bxc3
{[%clk 0:01:21.6]} 37... Rxa2 {[%clk 0:00:43.7]} 38. Rf5 {[%clk 0:01:21.7]}
38... Rxa3 {[%clk 0:00:43]} 39. Rf7+ {[%clk 0:01:21.4]} 39... Kc6 {[%clk
0:00:43]} 40. Rxa7 {[%clk 0:01:18.2]} 40... Rxa7 {[%clk 0:00:42.1]} 0-1

[Event "*** Titled Tuesday Blitz"]
[Site "Chess.com"]
[Date "2021.04.20"]
[Round "4"]
[White "nocnypako"]
[Black "RobertoJBM"]
[Result "0-1"]
[WhiteElo "2519"]
[BlackElo "2734"]
[TimeControl "180+1"]
[EndTime "10:36:27 PDT"]
[Termination "RobertoJBM won by resignation"]

1. d4 {[%clk 0:03:00.9]} 1... d5 {[%clk 0:02:59]} 2. c4 {[%clk 0:03:01]} 2... c6
{[%clk 0:02:59]} 3. Nc3 {[%clk 0:03:01]} 3... dxc4 {[%clk 0:02:58]} 4. Nf3
{[%clk 0:02:58.9]} 4... b5 {[%clk 0:02:57.5]} 5. a4 {[%clk 0:02:54.8]} 5... b4
{[%clk 0:02:55.1]} 6. Ne4 {[%clk 0:02:53.9]} 6... Qd5 {[%clk 0:02:50.1]} 7. Ng3
{[%clk 0:02:27.2]} 7... Nf6 {[%clk 0:02:48.9]} 8. e3 {[%clk 0:02:27.3]} 8... Ba6
{[%clk 0:02:31.7]} 9. Be2 {[%clk 0:02:24.2]} 9... e6 {[%clk 0:02:30.2]} 10. Ne5
{[%clk 0:02:16.4]} 10... c3 {[%clk 0:01:43.5]} 11. bxc3 {[%clk 0:02:10.3]} 11...
Bxe2 {[%clk 0:01:40.1]} 12. Qxe2 {[%clk 0:01:56.5]} 12... Qxg2 {[%clk
0:01:36.3]} 13. c4 {[%clk 0:00:51.9]} 13... c5 {[%clk 0:01:29.3]} 14. Bb2 {[%clk
0:00:35.1]} 14... Nc6 {[%clk 0:01:18.3]} 15. O-O-O {[%clk 0:00:25.5]} 15... Nxe5
{[%clk 0:01:06.6]} 16. dxe5 {[%clk 0:00:25.5]} 16... Nd7 {[%clk 0:01:04.3]} 17.
f3 {[%clk 0:00:20.7]} 17... Qxe2 {[%clk 0:01:03.5]} 18. Nxe2 {[%clk 0:00:21.5]}
18... Nb6 {[%clk 0:01:02.4]} 19. Kc2 {[%clk 0:00:09.1]} 19... Nxc4 {[%clk
0:01:00.7]} 20. Kb3 {[%clk 0:00:09.5]} 20... Nxe3 {[%clk 0:00:56.4]} 0-1

[Event "*** Titled Tuesday Blitz"]
[Site "Chess.com"]
[Date "2021.04.20"]
[Round "4"]
[White "bocah_sakit"]
[Black "enriquetejedor"]
[Result "1-0"]
[WhiteElo "2822"]
[BlackElo "2630"]
[TimeControl "180+1"]
[EndTime "10:36:29 PDT"]
[Termination "bocah_sakit won by checkmate"]

1. e4 {[%clk 0:03:00.9]} 1... c5 {[%clk 0:02:46.4]} 2. Nf3 {[%clk 0:03:00.8]}
2... d6 {[%clk 0:02:46]} 3. d4 {[%clk 0:03:01.3]} 3... cxd4 {[%clk 0:02:46.9]}
4. Nxd4 {[%clk 0:03:02.2]} 4... Nf6 {[%clk 0:02:47.6]} 5. Nc3 {[%clk 0:03:02.9]}
5... g6 {[%clk 0:02:48.1]} 6. Be3 {[%clk 0:03:03]} 6... Bg7 {[%clk 0:02:49]} 7.
f3 {[%clk 0:03:03.6]} 7... O-O {[%clk 0:02:49.6]} 8. Qd2 {[%clk 0:03:04.3]} 8...
Nc6 {[%clk 0:02:49.5]} 9. Bc4 {[%clk 0:03:04.9]} 9... Bd7 {[%clk 0:02:48.3]} 10.
Bb3 {[%clk 0:03:05.2]} 10... Na5 {[%clk 0:02:43.6]} 11. Bh6 {[%clk 0:03:01]}
11... Rc8 {[%clk 0:02:31.8]} 12. h4 {[%clk 0:02:54.2]} 12... Rc5 {[%clk
0:02:31]} 13. g4 {[%clk 0:02:44.8]} 13... b5 {[%clk 0:02:07.7]} 14. h5 {[%clk
0:02:36.9]} 14... Nc4 {[%clk 0:02:04.2]} 15. Bxc4 {[%clk 0:02:36]} 15... Rxc4
{[%clk 0:02:05.1]} 16. Bxg7 {[%clk 0:02:35.6]} 16... Kxg7 {[%clk 0:02:05.1]} 17.
hxg6 {[%clk 0:02:35.8]} 17... fxg6 {[%clk 0:02:05.4]} 18. Qh6+ {[%clk
0:02:30.6]} 18... Kg8 {[%clk 0:02:05.1]} 19. O-O-O {[%clk 0:02:31.3]} 19... Rf7
{[%clk 0:01:59.8]} 20. e5 {[%clk 0:02:23.3]} 20... dxe5 {[%clk 0:01:50]} 21. Ne6
{[%clk 0:02:22.1]} 21... Qa5 {[%clk 0:01:27.1]} 22. Ng5 {[%clk 0:02:22.1]} 22...
Rxc3 {[%clk 0:01:20.7]} 23. bxc3 {[%clk 0:02:17.6]} 23... Qxc3 {[%clk 0:01:13]}
24. Rd3 {[%clk 0:02:17.9]} 24... Qa1+ {[%clk 0:00:41.3]} 25. Kd2 {[%clk
0:02:17.2]} 25... Qxa2 {[%clk 0:00:42.2]} 26. Nxf7 {[%clk 0:02:16.9]} 26... Qxf7
{[%clk 0:00:40.1]} 27. g5 {[%clk 0:02:11.4]} 27... e4 {[%clk 0:00:06.4]} 28. Rd4
{[%clk 0:01:55]} 28... Nh5 {[%clk 0:00:04.4]} 29. Rxd7 {[%clk 0:01:42]} 29...
Qf4+ {[%clk 0:00:04]} 30. Kc3 {[%clk 0:01:37.4]} 30... Qxf3+ {[%clk 0:00:03.4]}
31. Kb2 {[%clk 0:01:37.8]} 31... Qxh1 {[%clk 0:00:01.5]} 32. Rxe7 {[%clk
0:01:35.4]} 32... Qf3 {[%clk 0:00:01.7]} 33. Re8+ {[%clk 0:01:35.5]} 33... Kf7
{[%clk 0:00:01.6]} 34. Qf8# {[%clk 0:01:36.4]} 1-0